bitfinex/quotes_BTCUSD_20240717
["timestamp","ask_amount","ask_price","bid_price","bid_amount"]
[1721227726415,0.77458774,65188.0,65187.0,0.009185]
[1721227726689,0.16,65188.0,65187.0,0.162589]
[1721227726926,0.16,65188.0,65187.0,0.469398]
[1721227726927,0.05,65188.0,65187.0,0.469398]
[1721227727157,0.15,65188.0,65187.0,0.469398]
[1721227727596,0.48812284,65188.0,65187.0,0.009185]
[1721227727820,0.79492684,65188.0,65187.0,0.009185]
[1721227728095,1.40853484,65188.0,65187.0,0.009185]
[1721227728319,1.55073484,65188.0,65187.0,0.009185]
[1721227728821,1.56073484,65188.0,65187.0,0.009185]
[1721227729036,1.60146661,65188.0,65187.0,0.009185]
[1721227729248,0.80492684,65188.0,65187.0,0.009185]
[1721227729472,1.12173084,65188.0,65187.0,0.009185]
[1721227730110,0.32438174,65188.0,65187.0,0.009185]
[1721227730321,1.07139174,65188.0,65187.0,0.009185]
[1721227731411,1.37819574,65188.0,65187.0,0.009185]
[1721227731622,0.76458774,65188.0,65187.0,0.009185]
[1721227731864,1.07139174,65188.0,65187.0,0.009185]
[1721227731999,1.17853091,65188.0,65187.0,0.009185]
[1721227732229,1.07139174,65188.0,65187.0,0.009185]
[1721227732660,1.07939174,65188.0,65187.0,0.009185]
[1721227733235,1.07139174,65188.0,65187.0,0.009185]
[1721227733648,1.08139174,65188.0,65187.0,0.009185]
[1721227734068,0.46778374,65188.0,65187.0,0.009185]
[1721227734710,0.30438174,65188.0,65187.0,0.009185]
[1721227735126,0.30438174,65188.0,65187.0,0.469398]
[1721227735127,0.15,65188.0,65187.0,0.469398]
[1721227735329,0.05,65188.0,65187.0,0.162589]
[1721227735977,0.058,65188.0,65187.0,0.009185]
[1721227736189,0.058,65188.0,65187.0,0.162589]
[1721227736404,0.008,65188.0,65187.0,0.9609471]
[1721227736611,0.05,65199.0,65198.0,0.460135]
[1721227736829,0.05,65202.0,65201.0,0.460114]
[1721227738380,0.05,65202.0,65201.0,0.766857]
[1721227738580,0.05,65202.0,65201.0,0.89422055]
[1721227739202,0.05,65202.0,65201.0,0.460114]
[1721227739418,0.05,65202.0,65201.0,0.58747746]
[1721227739637,0.05,65202.0,65201.0,0.460114]
[1721227740472,0.05,65204.0,65203.0,0.153367]
[1721227740674,0.153344,65213.0,65212.0,0.153346]
[1721227740675,0.05,65213.0,65212.0,0.153346]
[1721227740886,0.05,65217.0,65216.0,0.153336]
[1721227741110,0.061429,65237.0,65219.0,0.153329]
[1721227741111,0.05,65220.0,65219.0,0.153329]
[1721227741327,0.05,65220.0,65219.0,0.28066159]
[1721227741529,0.05,65220.0,65219.0,0.153329]
[1721227741733,0.05,65220.0,65219.0,0.459988]
[1721227741909,0.05,65220.0,65219.0,0.153329]
[1721227742177,0.05,65220.0,65219.0,0.459988]
[1721227742380,0.05,65220.0,65219.0,0.153329]
[1721227742589,0.05,65220.0,65219.0,0.459988]
[1721227742811,0.05,65220.0,65219.0,0.766647]
[1721227743024,0.05,65222.0,65221.0,0.459973]
[1721227743242,0.05,65224.0,65223.0,0.45996]
[1721227743532,0.621597,65233.0,65232.0,0.153298]
[1721227743533,0.67268174,65233.0,65232.0,0.153298]
[1721227743746,0.20438174,65233.0,65232.0,0.153298]
[1721227743956,0.20438174,65233.0,65232.0,0.459895]
[1721227744369,0.20438174,65233.0,65223.0,0.1431]
[1721227744370,0.05084,65236.0,65235.0,0.459874]
[1721227745195,0.00084,65236.0,65235.0,0.459874]
[1721227745395,0.00084,65236.0,65235.0,0.766457]
[1721227745600,0.00084,65236.0,65235.0,1.03624859]
[1721227745845,0.00084,65236.0,65235.0,1.11289429]
[1721227746074,0.00084,65236.0,65235.0,1.03624859]
[1721227746284,0.05084,65236.0,65235.0,0.295791]
[1721227746488,0.05084,65236.0,65235.0,0.153291]
[1721227746893,0.05084,65236.0,65235.0,0.459874]
[1721227747097,0.05084,65236.0,65235.0,0.462874]
[1721227747502,0.05084,65236.0,65235.0,0.769457]
[1721227747503,0.00084,65236.0,65235.0,0.769457]
[1721227747710,0.00084,65236.0,65235.0,1.187106]
[1721227748067,0.00284,65236.0,65235.0,1.07304]
[1721227748487,0.00084,65236.0,65235.0,1.22024]
[1721227748635,0.00084,65236.0,65235.0,1.65410158]
[1721227748831,0.00184,65236.0,65235.0,1.65910158]
[1721227749256,0.00184,65236.0,65235.0,1.531823]
[1721227751753,0.00184,65236.0,65235.0,1.81347496]
[1721227751959,0.00184,65236.0,65235.0,2.22005796]
[1721227752404,0.00184,65236.0,65235.0,1.93647496]
[1721227752606,0.00184,65236.0,65235.0,1.80920474]
[1721227752830,0.00184,65236.0,65235.0,1.93646016]
[1721227754130,0.00084,65236.0,65235.0,1.93146016]
[1721227754535,0.00184,65236.0,65235.0,1.94446016]
[1721227754960,0.00184,65236.0,65235.0,2.25104316]
[1721227755156,0.00084,65236.0,65235.0,2.23804316]
[1721227755376,0.00084,65236.0,65235.0,2.25204316]
[1721227755377,0.00184,65236.0,65235.0,2.25204316]
[1721227755576,0.00184,65236.0,65235.0,1.81820474]
[1721227755787,0.00184,65236.0,65235.0,1.94545385]
[1721227755987,0.00084,65236.0,65235.0,1.93145385]
[1721227756228,0.00084,65236.0,65235.0,2.23804051]
[1721227757267,0.00084,65236.0,65235.0,1.93145751]
[1721227757464,0.00084,65236.0,65235.0,1.93145923]
[1721227757867,0.00084,65236.0,65235.0,1.94445923]
[1721227757868,0.00184,65236.0,65235.0,1.94445923]
[1721227758286,0.00184,65236.0,65235.0,2.16795923]
[1721227758487,0.00284,65236.0,65235.0,2.18095923]
[1721227758744,0.00284,65236.0,65235.0,2.18096412]
[1721227758900,0.00284,65236.0,65235.0,2.15496412]
[1721227758901,0.00084,65236.0,65235.0,2.15496412]
[1721227759108,0.00084,65236.0,65235.0,2.46154712]
[1721227759315,0.00184,65236.0,65235.0,2.47454712]
[1721227759518,0.07717479,65260.0,65259.0,1.072648]
[1721227759726,0.46304871,65261.0,65260.0,0.153233]
[1721227759931,0.05,65271.0,65260.0,0.0376733]
[1721227760138,0.00836,65272.0,65270.0,0.2235]
[1721227760348,0.00836,65272.0,65271.0,0.766035]
[1721227760968,0.05836,65272.0,65271.0,0.766035]
[1721227761174,0.05836,65272.0,65271.0,0.459621]
[1721227761789,0.00836,65272.0,65271.0,0.5362256]
[1721227762383,0.05936,65272.0,65271.0,0.5432256]
[1721227762584,0.00936,65272.0,65271.0,0.8496396]
[1721227762815,0.00936,65272.0,65271.0,0.773035]
[1721227763325,0.00936,65272.0,65271.0,0.766035]
[1721227763326,0.00836,65272.0,65271.0,0.766035]
[1721227764596,0.05836,65272.0,65271.0,0.459621]
[1721227764823,0.05836,65272.0,65271.0,0.770035]
[1721227764824,0.00836,65272.0,65271.0,0.770035]
[1721227765247,0.05836,65272.0,65271.0,0.459621]
[1721227765430,0.05836,65272.0,65268.0,0.153214]
[1721227765431,0.05,65269.0,65268.0,0.153214]
[1721227765635,0.05,65269.0,65268.0,0.76607]
[1721227766505,0.05,65269.0,65268.0,0.89328889]
[1721227766708,0.05,65269.0,65268.0,0.12721889]
[1721227766915,0.1271,65269.0,65268.0,0.28043289]
[1721227767120,0.1271,65269.0,65268.0,0.153214]
[1721227767325,0.1271,65269.0,65268.0,0.28043412]
[1721227767530,0.1271,65269.0,65268.0,0.58686212]
[1721227767746,0.05,65269.0,65268.0,0.58686212]
[1721227767959,0.00936,65272.0,65269.0,0.459636]
[1721227767960,0.05,65270.0,65269.0,0.459636]
[1721227768163,0.05,65270.0,65269.0,0.586856]
[1721227768372,0.05,65270.0,65269.0,0.58685536]
[1721227768581,0.00836,65272.0,65271.0,0.306414]
[1721227768789,0.00836,65272.0,65271.0,0.89325436]
[1721227768999,0.00836,65272.0,65271.0,1.19966836]
[1721227769216,0.00836,65272.0,65271.0,1.6604641]
[1721227769424,0.00836,65272.0,65271.0,1.7500641]
[1721227769634,0.00836,65272.0,65271.0,1.88129258]
[1721227769854,0.00836,65272.0,65271.0,1.39748976]
[1721227770074,0.00836,65272.0,65271.0,0.89324728]
[1721227770308,0.05836,65272.0,65271.0,0.58683328]
[1721227770513,0.00836,65272.0,65271.0,0.89324728]
[1721227770923,0.05836,65272.0,65271.0,0.58683697]
[1721227771367,0.05836,65272.0,65271.0,0.98257707]
[1721227771573,0.00836,65272.0,65271.0,0.98557707]
[1721227771786,0.05836,65272.0,65271.0,0.13021597]
[1721227771996,0.97876674,65272.0,65271.0,0.12721597]
[1721227772411,0.97876674,65272.0,65271.0,0.13221597]
[1721227772859,0.97876674,65272.0,65271.0,0.12721597]
[1721227773067,0.67235674,65272.0,65271.0,0.12721597]
[1721227773282,0.36594674,65272.0,65271.0,0.12721597]
[1721227773977,0.05,65268.0,65267.0,0.459645]
[1721227774187,0.05,65268.0,65267.0,0.66347369]
[1721227775225,0.05,65268.0,65267.0,0.12722019]
[1721227775457,0.05,65268.0,65267.0,0.28043619]
[1721227775864,0.05,65268.0,65267.0,0.58686919]
[1721227776093,0.81723774,65268.0,65267.0,0.12722019]
[1721227776323,1.53028031,65268.0,65267.0,0.12722019]
[1721227776533,1.41707974,65268.0,65267.0,0.12722019]
[1721227776942,0.65100974,65268.0,65250.0,0.0027273]
[1721227777153,0.05,65257.0,65251.0,0.3180678]
[1721227777333,0.05,65257.0,65248.0,0.15326]
[1721227777334,0.05,65257.0,65252.0,0.3207951]
[1721227777574,0.05,65257.0,65254.0,0.0027273]
[1721227777811,0.05,65256.0,65255.0,0.3180678]
[1721227778024,0.05,65259.0,65256.0,0.0027273]
[1721227778237,0.18275427,65315.0,65257.0,0.3180678]
[1721227778238,0.05,65262.0,65257.0,0.3180678]
[1721227778454,0.05,65262.0,65248.0,0.30652]
[1721227778455,0.05,65261.0,65258.0,0.3207951]
[1721227778661,0.07717479,65267.0,65251.0,0.306505]
[1721227778662,0.05,65259.0,65254.0,0.0027273]
[1721227778884,0.05,65258.0,65255.0,0.31806485]
[1721227779115,0.30644,65266.0,65246.0,0.38213]
[1721227779116,0.05,65251.0,65246.0,0.38213]
[1721227779322,0.306462,65261.0,65246.0,0.38213]
[1721227779323,0.05,65257.0,65250.0,0.32079573]
[1721227779537,0.05,65257.0,65251.0,0.31806843]
[1721227779750,0.05,65253.0,65252.0,0.32079573]
[1721227779960,0.306462,65261.0,65252.0,0.32079573]
[1721227779961,0.05,65254.0,65252.0,0.31806843]
[1721227780187,0.05,65254.0,65253.0,0.31807075]
[1721227780408,0.05,65255.0,65253.0,0.31807075]
[1721227780621,0.05,65255.0,65254.0,0.32079801]
[1721227780835,0.05,65256.0,65254.0,0.32079801]
[1721227781052,0.05,65255.0,65249.0,0.217058]
[1721227781258,0.05,65254.0,65250.0,0.44433043]
[1721227781475,0.05,65258.0,65251.0,0.31807053]
[1721227781735,0.46082774,65265.0,65250.0,0.2169018]
[1721227781736,0.05,65265.0,65253.0,0.3092253]
[1721227781941,0.05,65265.0,65252.0,0.31807053]
[1721227781942,0.05,65271.0,65259.0,0.0645]
[1721227782181,0.47666,65272.0,65268.0,0.153212]
[1721227782391,0.47666,65272.0,65260.0,0.47551635]
[1721227782392,0.47666,65272.0,65269.0,0.47128153]
[1721227782599,0.52666,65272.0,65270.0,0.31807053]
[1721227782807,0.52666,65272.0,65271.0,0.31807053]
[1721227783021,0.83307,65272.0,65271.0,0.31807053]
[1721227783236,0.05,65260.0,65253.0,0.1404]
[1721227783468,0.50030808,65272.0,65257.0,0.0027273]
[1721227783469,0.05,65258.0,65257.0,0.0027273]
[1721227783685,0.203237,65258.0,65257.0,0.31805162]
[1721227784079,0.05,65258.0,65257.0,0.31805162]
[1721227785236,0.05,65260.0,65257.0,0.34985678]
[1721227785497,0.05,65258.0,65257.0,0.04180516]
[1721227785736,0.05,65258.0,65257.0,0.32807092]
[1721227785937,0.05,65258.0,65257.0,0.31807092]
[1721227786147,0.05,65258.0,65257.0,0.31807156]
[1721227786578,0.203237,65258.0,65257.0,0.31807156]
[1721227786815,0.05,65258.0,65257.0,0.31807156]
[1721227787021,0.05,65259.0,65257.0,0.34987872]
[1721227787231,0.05,65261.0,65258.0,0.32079886]
[1721227787439,0.05,65262.0,65259.0,0.31807156]
[1721227787643,0.05,65268.0,65260.0,0.41805943]
[1721227787878,0.00836,65272.0,65263.0,0.153225]
[1721227787879,0.05,65267.0,65263.0,0.153225]
[1721227788124,0.00836,65272.0,65266.0,0.306434]
[1721227788331,0.00836,65272.0,65267.0,0.31807156]
[1721227788544,0.00836,65272.0,65268.0,0.31807156]
[1721227788759,0.00836,65272.0,65269.0,0.47128256]
[1721227788974,0.00836,65272.0,65268.0,0.03180716]
[1721227788975,0.00836,65272.0,65271.0,0.153207]
[1721227789192,0.00836,65272.0,65271.0,0.95686013]
[1721227789453,0.00836,65272.0,65271.0,1.08407688]
[1721227789656,0.00836,65272.0,65271.0,0.77766288]
[1721227789863,0.00836,65272.0,65271.0,0.31804188]
[1721227790077,0.05836,65272.0,65271.0,0.31804188]
[1721227790514,0.96446174,65272.0,65271.0,0.31804188]
[1721227790754,1.11766674,65272.0,65271.0,0.31804188]
[1721227791009,1.42407674,65272.0,65271.0,0.33637703]
[1721227791215,1.52407674,65272.0,65271.0,0.12721675]
[1721227791431,1.52607674,65272.0,65271.0,0.12721675]
[1721227791661,1.68042631,65272.0,65271.0,0.12721675]
[1721227792052,0.05,65257.0,65251.0,0.153254]
[1721227792256,0.05,65257.0,65252.0,0.38440584]
[1721227792459,0.05,65257.0,65253.0,0.38167854]
[1721227792670,0.05,65258.0,65254.0,0.19356675]
[1721227792898,0.05,65256.0,65255.0,0.31806575]
[1721227793107,0.571327,65256.0,65255.0,0.31806575]
[1721227793321,0.960012,65256.0,65255.0,0.31806575]
[1721227793536,1.11439374,65256.0,65255.0,0.31806575]
[1721227793747,0.347042,65256.0,65255.0,0.31806575]
[1721227793953,0.05,65256.0,65255.0,0.31806575]
[1721227794160,0.05,65256.0,65255.0,0.34987232]
[1721227794615,0.05,65257.0,65255.0,0.31806575]
[1721227794822,0.1,65258.0,65256.0,0.31806575]
[1721227794823,0.15,65258.0,65256.0,0.31806575]
[1721227795027,0.15,65258.0,65257.0,0.31806575]
[1721227795238,0.15,65258.0,65255.0,0.002]
[1721227795239,0.05,65256.0,65255.0,0.002]
[1721227795465,0.509727,65256.0,65255.0,0.32007806]
[1721227796311,0.509727,65256.0,65255.0,0.31807806]
[1721227796538,0.91836984,65256.0,65255.0,0.31807806]
[1721227796979,1.44283658,65256.0,65255.0,0.31807806]
[1721227797204,1.44283658,65256.0,65255.0,0.13523122]
[1721227797205,1.34067874,65256.0,65255.0,0.13523122]
[1721227797615,1.44067874,65256.0,65255.0,0.13523122]
[1721227797819,1.44067874,65256.0,65255.0,0.12723122]
[1721227798248,0.509748,65253.0,65252.0,0.01831253]
[1721227798457,0.97062874,65253.0,65252.0,0.12723644]
[1721227798838,1.11470011,65253.0,65252.0,0.12723644]
[1721227799496,0.97062874,65253.0,65252.0,0.12723644]
[1721227799906,1.27712774,65253.0,65252.0,0.12723644]
[1721227800076,1.37712774,65253.0,65252.0,0.12723644]
[1721227800885,1.45482774,65253.0,65252.0,0.006]
[1721227801095,1.45482774,65253.0,65252.0,0.13323987]
[1721227801307,1.97647631,65253.0,65252.0,0.13323987]
[1721227802387,2.44427531,65253.0,65252.0,0.12723987]
[1721227802624,2.44427531,65253.0,65237.0,0.01830381]
[1721227802625,0.05,65238.0,65237.0,0.01830381]
[1721227802839,0.05,65238.0,65236.0,0.000924]
[1721227802840,0.509861,65237.0,65236.0,0.000924]
[1721227803060,1.37739074,65237.0,65236.0,0.000924]
[1721227803309,1.07081674,65237.0,65236.0,0.000924]
[1721227803531,1.10875879,65237.0,65236.0,0.000924]
[1721227803751,1.41533279,65237.0,65236.0,0.000924]
[1721227803961,1.86030679,65237.0,65236.0,0.000924]
[1721227805188,2.04460679,65237.0,65236.0,0.000924]
[1721227805415,2.40118079,65237.0,65236.0,0.000924]
[1721227805633,0.05,65207.0,65206.0,0.0027273]
[1721227806038,0.153355,65208.0,65199.0,0.0832]
[1721227806039,0.05,65201.0,65199.0,0.0832]
[1721227806250,0.05,65201.0,65200.0,0.0027273]
[1721227806980,0.05,65201.0,65199.0,0.0832]
[1721227807211,0.05,65200.0,65199.0,0.0832]
[1721227807435,0.05,65201.0,65199.0,0.0832]
[1721227807648,0.05,65201.0,65199.0,0.0972]
[1721227807851,0.05,65200.0,65199.0,0.0972]
[1721227808052,0.05,65203.0,65199.0,0.0972]
[1721227808252,0.05,65203.0,65200.0,0.0027273]
[1721227808448,0.05,65206.0,65200.0,0.0027273]
[1721227808656,0.05,65207.0,65202.0,0.0027273]
[1721227808860,0.05,65206.0,65200.0,0.0027273]
[1721227809064,0.153351,65210.0,65200.0,0.0027273]
[1721227809065,0.05,65202.0,65200.0,0.0027273]
[1721227809263,0.05,65201.0,65200.0,0.0027273]
[1721227809568,0.05,65203.0,65200.0,0.0027273]
[1721227809756,0.05,65203.0,65199.0,0.0972]
[1721227809968,0.05,65201.0,65200.0,0.32574579]
[1721227810168,0.05,65201.0,65200.0,0.14443803]
[1721227810169,0.203371,65201.0,65200.0,0.14443803]
[1721227810401,0.05,65201.0,65200.0,0.32302532]
[1721227810612,0.203371,65201.0,65200.0,0.33702532]
[1721227811036,0.97123874,65201.0,65200.0,0.31666327]
[1721227811244,0.76786775,65201.0,65200.0,0.75602539]
[1721227811429,0.30775275,65201.0,65200.0,0.67522001]
[1721227811655,0.61449575,65201.0,65200.0,0.67522001]
[1721227812033,0.92123875,65201.0,65200.0,0.66122001]
[1721227812272,1.44209027,65201.0,65200.0,0.66122001]
[1721227812484,1.52210187,65201.0,65200.0,0.67590925]
[1721227812695,1.47778175,65201.0,65200.0,0.34284994]
[1721227813106,1.08713875,65201.0,65200.0,0.32884994]
[1721227813588,1.08713875,65201.0,65200.0,0.33384994]
[1721227813823,0.40775275,65201.0,65200.0,0.38312597]
[1721227814055,0.15438175,65201.0,65200.0,0.33384994]
[1721227814293,1e-08,65201.0,65200.0,0.33384994]
[1721227814839,1e-08,65201.0,65200.0,1.80066008]
[1721227815077,1e-08,65201.0,65200.0,1.33953034]
[1721227815309,1e-08,65201.0,65200.0,0.87387194]
[1721227815531,1e-08,65201.0,65200.0,1.02778234]
[1721227815732,1e-08,65201.0,65200.0,0.88950148]
[1721227815935,1e-08,65201.0,65200.0,0.73683742]
[1721227816163,1e-08,65201.0,65200.0,1.00309702]
[1721227816375,1e-08,65201.0,65200.0,0.99809702]
[1721227816577,1e-08,65201.0,65200.0,1.15576108]
[1721227816783,0.00100001,65201.0,65200.0,1.01209702]
[1721227817417,0.00100001,65201.0,65200.0,1.16976108]
[1721227817596,0.00100001,65201.0,65200.0,1.31884502]
[1721227817797,0.00100001,65201.0,65200.0,1.47650908]
[1721227817976,0.00100001,65201.0,65200.0,1.31884502]
[1721227818179,0.00100001,65201.0,65200.0,1.47650908]
[1721227818361,0.00100001,65201.0,65200.0,1.31884502]
[1721227818567,0.00100001,65201.0,65200.0,1.16976108]
[1721227818765,1e-08,65201.0,65200.0,1.24153266]
[1721227818977,1e-08,65201.0,65200.0,1.30516315]
[1721227819175,1e-08,65201.0,65200.0,1.31616315]
[1721227819454,0.00100001,65201.0,65200.0,1.48287855]
[1721227819661,0.00100001,65201.0,65200.0,1.47187855]
[1721227819952,0.00100001,65201.0,65200.0,1.46287855]
[1721227820170,0.46304871,65224.0,65216.0,0.0662]
[1721227820379,0.46304871,65224.0,65221.0,0.153323]
[1721227820591,0.4683,65237.0,65217.0,0.49755948]
[1721227820592,0.4683,65237.0,65222.0,0.22301484]
[1721227820810,0.0657,65243.0,65238.0,0.153282]
[1721227821014,0.15438174,65242.0,65239.0,0.12726099]
[1721227821225,0.0657,65249.0,65240.0,0.43381799]
[1721227821439,0.00084,65253.0,65241.0,0.12726099]
[1721227821665,0.00084,65253.0,65242.0,0.14773709]
[1721227821873,0.15438174,65252.0,65243.0,0.12723444]
[1721227822076,0.15438174,65252.0,65244.0,0.12723444]
[1721227822299,0.15438174,65252.0,65243.0,0.153272]
[1721227822517,0.15438174,65252.0,65237.0,0.38407]
[1721227822518,0.15438174,65252.0,65244.0,0.12723572]
[1721227822732,0.15438174,65252.0,65245.0,0.12723572]
[1721227822733,0.07717479,65248.0,65245.0,0.12723572]
[1721227822939,0.07717479,65248.0,65239.0,0.153281]
[1721227823152,0.07717479,65248.0,65240.0,0.12723749]
[1721227823366,0.07717479,65248.0,65233.0,0.0662]
[1721227823367,0.15438174,65247.0,65233.0,0.0662]
[1721227823568,0.153271,65244.0,65233.0,0.219495]
[1721227823773,0.30765274,65244.0,65243.0,0.001]
[1721227824193,0.46092474,65244.0,65230.0,0.230801]
[1721227824399,0.46092474,65244.0,65230.0,0.0775]
[1721227824400,0.07717479,65240.0,65230.0,0.0775]
[1721227824612,0.07717479,65233.0,65223.0,0.0824]
[1721227824825,0.15438174,65239.0,65224.0,0.0605973]
[1721227825035,0.04577726,65241.0,65224.0,0.0605973]
[1721227825036,0.1,65238.0,65225.0,0.00306624]
[1721227825250,0.0686659,65244.0,65235.0,0.153291]
[1721227825458,0.04577726,65249.0,65232.0,0.306595]
[1721227825668,0.1,65248.0,65241.0,0.153277]
[1721227825883,0.1,65248.0,65242.0,0.0459842]
[1721227826304,0.18217479,65248.0,65240.0,0.001]
[1721227826529,0.18217479,65248.0,65239.0,0.153282]
[1721227826530,0.1,65248.0,65239.0,0.153282]
[1721227826936,0.17717479,65248.0,65239.0,0.153282]
[1721227827144,0.17717479,65248.0,65235.0,0.306583]
[1721227827350,0.17717479,65248.0,65237.0,0.306572]
[1721227827351,0.1,65248.0,65237.0,0.306572]
[1721227827557,0.17917479,65248.0,65238.0,0.1980892]
[1721227827764,0.17917479,65248.0,65238.0,0.153282]
[1721227828141,0.18217479,65248.0,65239.0,0.001]
[1721227828942,0.33543579,65248.0,65239.0,0.001]
[1721227829146,0.15328,65240.0,65239.0,0.001]
[1721227829435,0.23045379,65241.0,65239.0,0.001]
[1721227829668,0.15328,65240.0,65239.0,0.001]
[1721227829981,1.10088174,65240.0,65239.0,0.001]
[1721227830140,1.5171855,65240.0,65239.0,0.001]
[1721227830352,1.92004171,65240.0,65239.0,0.001]
[1721227830553,1.82852581,65240.0,65239.0,0.001]
[1721227830766,2.0944676,65240.0,65239.0,0.001]
[1721227830971,2.0944676,65240.0,65215.0,0.46304871]
[1721227830972,2.53321335,65240.0,65215.0,0.46304871]
[1721227831199,0.521309,65216.0,65215.0,0.46304871]
[1721227831401,0.67569074,65216.0,65215.0,0.46304871]
[1721227831601,0.153343,65213.0,65203.0,0.0817]
[1721227831768,0.153343,65213.0,65204.0,0.06083693]
[1721227831970,0.153343,65213.0,65203.0,0.0817]
[1721227831971,0.01493132,65212.0,65203.0,0.0817]
[1721227832184,0.15335,65211.0,65203.0,0.0817]
[1721227832388,0.153356,65208.0,65203.0,0.0817]
[1721227832624,0.15438174,65211.0,65200.0,0.000924]
[1721227832625,0.01487569,65207.0,65200.0,0.000924]
[1721227832843,0.153351,65210.0,65200.0,0.0379635]
[1721227833058,0.153355,65208.0,65200.0,0.000924]
[1721227833215,0.01493926,65209.0,65200.0,0.000924]
[1721227833216,0.153358,65207.0,65200.0,0.000924]
[1721227833704,0.01493926,65206.0,65200.0,0.000924]
[1721227834169,0.01493926,65206.0,65204.0,0.008]
[1721227834416,0.30772974,65211.0,65204.0,0.008]
[1721227834644,0.01496977,65205.0,65204.0,0.008]
[1721227834875,0.01498054,65205.0,65200.0,0.0036513]
[1721227835157,0.30772974,65211.0,65200.0,0.0036513]
[1721227835158,0.30772974,65211.0,65200.0,0.0056513]
[1721227835391,0.30772974,65211.0,65200.0,0.24254913]
[1721227835593,0.01497695,65210.0,65200.0,0.24254913]
[1721227836045,0.01497695,65210.0,65200.0,0.0036513]
[1721227836550,0.153353,65209.0,65200.0,0.000924]
[1721227836777,0.32168195,65210.0,65201.0,0.0027273]
[1721227836778,0.008,65207.0,65201.0,0.0027273]
[1721227837008,0.008,65207.0,65204.0,0.004]
[1721227837239,0.153362,65205.0,65204.0,0.004]
[1721227837466,0.01494099,65205.0,65204.0,0.004]
[1721227838073,0.01494099,65205.0,65200.0,0.002924]
[1721227838314,0.16830299,65205.0,65200.0,0.002924]
[1721227839145,0.01494099,65205.0,65200.0,0.02509763]
[1721227839357,0.01494099,65205.0,65200.0,0.002924]
[1721227839568,0.008,65207.0,65200.0,0.002924]
[1721227839569,0.161359,65207.0,65200.0,0.002924]
[1721227839795,0.0149374,65204.0,65200.0,0.002924]
[1721227840034,0.161359,65207.0,65200.0,0.002924]
[1721227840305,0.153359,65207.0,65200.0,0.000924]
[1721227840541,0.0149374,65206.0,65200.0,0.02289713]
[1721227840949,0.153353,65209.0,65201.0,0.0027273]
[1721227841200,0.0149374,65205.0,65200.0,0.02289713]
[1721227841401,0.253353,65209.0,65201.0,0.0027273]
[1721227841625,0.008,65207.0,65201.0,0.001]
[1721227841843,0.306739,65202.0,65201.0,0.001]
[1721227842060,1.11283203,65202.0,65201.0,0.001]
[1721227842276,1.11283203,65202.0,65200.0,0.000924]
[1721227842277,1.0736,65201.0,65200.0,0.000924]
[1721227842487,1.32798174,65201.0,65200.0,0.000924]
[1721227842698,1.7138598,65201.0,65200.0,0.000924]
[1721227842942,1.86820937,65201.0,65200.0,0.000924]
[1721227843161,1.7138598,65201.0,65200.0,0.000924]
[1721227844354,2.0706028,65201.0,65200.0,0.000924]
[1721227844573,1.139414,65188.0,65181.0,0.0027273]
[1721227844790,1.55027053,65188.0,65181.0,0.46304871]
[1721227845014,1.7193723,65188.0,65180.0,0.000913]
[1721227845253,2.0261763,65188.0,65180.0,0.000913]
[1721227845986,2.07083657,65188.0,65180.0,0.000913]
[1721227846250,2.4942803,65188.0,65180.0,0.000913]
[1721227846484,2.5172803,65188.0,65180.0,0.000913]
[1721227846714,2.61194057,65188.0,65180.0,0.000913]
[1721227847675,2.7512892,65188.0,65187.0,0.010185]
[1721227850113,2.7512892,65188.0,65180.0,0.000913]
[1721227850114,2.541903,65181.0,65180.0,0.000913]
[1721227850346,2.89645953,65181.0,65180.0,0.000913]
[1721227850733,2.91099698,65181.0,65180.0,0.000913]
[1721227851130,2.95565725,65181.0,65180.0,0.000913]
[1721227851588,2.134065,65176.0,65175.0,0.009185]
[1721227851736,2.134065,65176.0,65151.0,0.009196]
[1721227851737,1.713552,65170.0,65151.0,0.009196]
[1721227851967,2.21245174,65170.0,65151.0,0.009196]
[1721227852188,2.01934074,65170.0,65151.0,0.009196]
[1721227852429,2.01934074,65170.0,65156.0,0.0665]
[1721227852430,1.48583281,65170.0,65156.0,0.0665]
[1721227852634,1.64018238,65170.0,65152.0,0.0027273]
[1721227852841,1.48583281,65170.0,65151.0,0.009196]
[1721227854607,1.49983281,65170.0,65169.0,0.010185]
[1721227855194,1.80672181,65170.0,65169.0,0.010185]
[1721227856024,1.49983281,65170.0,65169.0,0.010185]
[1721227856673,1.42043281,65170.0,65169.0,0.010185]
[1721227856876,0.02834007,65170.0,65169.0,0.010185]
[1721227857797,0.19578407,65170.0,65169.0,0.011185]
[1721227858009,0.02834007,65170.0,65169.0,0.010185]
[1721227858267,0.04234007,65170.0,65169.0,0.011185]
[1721227858684,0.04234007,65170.0,65169.0,0.091885]
[1721227858893,0.18178407,65170.0,65169.0,0.090885]
[1721227859110,0.64305481,65170.0,65169.0,0.010185]
[1721227859319,0.65705481,65170.0,65169.0,0.011185]
[1721227859530,0.04234007,65170.0,65169.0,0.090885]
[1721227859737,0.02834007,65170.0,65169.0,0.397779]
[1721227859950,0.03434007,65170.0,65169.0,0.552226]
[1721227860159,0.02,65170.0,65169.0,0.552226]
[1721227860401,0.02,65170.0,65169.0,0.245332]
[1721227860606,0.014,65170.0,65169.0,0.244332]
[1721227860862,0.021,65170.0,65169.0,1.78124394]
[1721227861073,0.021,65170.0,65169.0,0.7061802]
[1721227861276,0.021,65170.0,65169.0,0.92102]
[1721227861484,0.007,65170.0,65169.0,0.92002]
[1721227861693,0.007,65170.0,65169.0,0.152785]
[1721227861905,0.009,65170.0,65169.0,0.306232]
[1721227862118,0.009,65170.0,65169.0,0.9813328]
[1721227862533,0.007,65170.0,65169.0,0.91902]
[1721227863160,0.1,65183.0,65169.0,0.459679]
[1721227863380,0.15438174,65183.0,65170.0,0.0027273]
[1721227863589,0.1120757,65182.0,65172.0,0.153439]